Cogmind - Beta 15 @@@ ROGUE MODE // 2025.09.08 @ 21:06:31 Player: Ender Result: Destroyed by Y-45 Defender with Heavy Assault Rifle Performance ------------- Evolutions (2) 1000 Regions Visited (6) 1200 Robots Destroyed (57) 285 Value Destroyed (1152) 1152 Prototype IDs (0) 0 Alien Tech Used (0) 0 Bonus (140) 140 TOTAL SCORE: 3777 Bonus ------- Follower Combat Kills 140 Cogmind --------- Core Integrity 0/550 Matter 300/300 Energy 99/100 System Corruption 3% Temperature Cool (9) Movement Core (50) Location -8/Storage Parts ------- > --- POWER (3) -------- (None) > --- PROPULSION (2) --- (None) > --- UTILITY (3) ------ (None) > --- WEAPON (3) ------- (None) > --- INVENTORY (5) ---- Light Angular Momentum Engine Improved Terrain Scanner Particle Charger ECM Suite Datajack Peak State ------------ > --- POWER ------------ Ion Engine Improved Ion Engine Improved Ion Engine > --- PROPULSION ------- Light Treads Light Treads > --- UTILITY ---------- Large Storage Unit Improved Terrain Scanner Hardened Light Armor Plating > --- WEAPON ----------- EM Shotgun Heavy Assault Rifle Heavy Assault Rifle > --- INVENTORY -------- Light Treads Wheel Wheel Wheel Scrap Suit Heat Sink Particle Charger Particle Charger ECM Suite Light Assault Rifle Heavy Assault Rifle Shotgun Rocket Launcher Datajack [Rating: 21] Favorites ----------- Power Light Ion Engine Engine Light Ion Engine Propulsion Light Treads Treads Light Treads Leg Aluminum Leg Wheel Wheel Utility Small Storage Unit Device Improved Terrain Scanner Storage Small Storage Unit Protection Hardened Light Armor Plating Weapon Assault Rifle Energy Gun EM Shotgun Ballistic Gun Assault Rifle Launcher Rocket Launcher Build | -11 -10 -10 -9 -9 -8 -8 ------- Run | Yrd Mat Min Mat Min Mat Sto Slots Evolved 4 | . . . 2 . 2 . Power 2 | . . . 1 . 1 . Propulsion . | . . . . . . . Utility 1 | . . . . . 1 . Weapon 1 | . . . 1 . . . Parts Attached 48 | 10 6 1 7 2 6 16 Power 12 | 1 2 . 1 1 1 6 Engine 12 | 1 2 . 1 1 1 6 Core . | . . . . . . . Reactor . | . . . . . . . Propulsion 13 | 2 2 . 2 . 3 4 Treads 8 | 2 2 . 2 . 2 . Leg 1 | . . . . . . 1 Wheel 4 | . . . . . 1 3 Hover . | . . . . . . . Flight . | . . . . . . . Utility 9 | 4 2 . . . 1 2 Device 5 | 2 1 . . . . 2 Storage 3 | 2 1 . . . . . Processor . | . . . . . . . Hackware . | . . . . . . . Protection 1 | . . . . . 1 . Artifact . | . . . . . . . Weapon 14 | 3 . 1 4 1 1 4 Energy Gun 2 | 1 . . . . . 1 Energy Cannon . | . . . . . . . Ballistic Gun 10 | 2 . . 4 1 1 2 Ballistic Cannon . | . . . . . . . Launcher 2 | . . 1 . . . 1 Special Weapon . | . . . . . . . Impact Weapon . | . . . . . . . Slashing Weapon . | . . . . . . . Piercing Weapon . | . . . . . . . Special Melee Weapon . | . . . . . . . Unidentified Prototypes . | . . . . . . . Parts Lost 25 | . . 1 . . 1 23 Power 5 | . . . . . 1 4 Propulsion 8 | . . . . . . 8 Utility 4 | . . 1 . . . 3 Weapon 8 | . . . . . . 8 Highest Loss Streak 11 | . . 1 . . 1 11 To Critical Strikes 1 | . . . . . . 1 Average Backups 7 | 4 10 14 13 13 13 13 Power 1 | . 1 2 2 1 . . Propulsion 2 | 2 5 5 5 5 4 3 Utility 1 | . 1 2 2 3 3 4 Weapon 1 | 1 2 3 3 3 4 3 Tool/Special . | . . . . . . . Unused Backups 24 | 9 1 5 3 . 1 5 Power 2 | . . 1 . . . 1 Propulsion 8 | 6 . 2 . . . . Utility 5 | 1 . . . . 1 3 Weapon 8 | 2 1 2 3 . . . Tool/Special 1 | . . . . . . 1 Average Slot Usage (%) 93 | . 100 96 97 100 97 86 Engine 19 | . 14 14 20 22 24 21 Treads 20 | . 28 28 22 22 18 14 Device 9 | . 14 10 11 11 9 7 Storage 10 | . 14 14 11 11 9 8 Protection 3 | . . . . . 9 7 Energy Gun 2 | . . . . . . 6 Ballistic Gun 23 | . 28 21 31 33 27 16 Peak Build Rating 21 | 9 9 12 14 14 19 21 Average Rating 9 | 6 8 9 13 14 17 17 On Entrance 10 | . 9 8 12 14 14 16 Naked Turns 1 | . . . . . . 1 Heaviest Build 55 | 17 30 30 32 32 40 55 Greatest Support 40 | 40 40 40 40 40 40 40 Greatest Overweight (x) 5 | 5 . . . . 1 3 Average Overweight (x) 1 | 3 . . . . . . Largest Inventory Capacity 15 | 8 15 15 15 15 15 15 Average Capacity 10 | 7 12 15 15 15 15 14 Most Carried 15 | 8 15 15 15 15 15 15 Average Carried 7 | 4 10 14 14 14 14 14 Final Capacity 15 | 8 15 15 15 15 15 5 Final Carried 15 | 8 15 15 15 15 15 5 Class Distribution -------------------- 75% | Mutant 13% | Scavenger-Tank 6% | Scavenger-Skirmisher Dominant Class ---------------- Mutant | -10/Materials Mutant | -10/Mines Scavenger-Skirmisher | -9/Materials Scavenger-Skirmisher | -9/Mines Scavenger-Tank | -8/Materials Scavenger-Tank | -8/Storage Resources | -11 -10 -10 -9 -9 -8 -8 ----------- Run | Yrd Mat Min Mat Min Mat Sto Matter Collected 1532 | 531 145 133 176 55 161 331 Remotely . | . . . . . . . Salvage Created 1715 | 357 145 70 176 40 307 620 Parts 123 | 27 11 10 20 4 20 31 Haulers Intercepted . | . . . . . . . Recyclers Shooed 2 | 1 . 1 . . . . Parts Field Recycled . | . . . . . . . Retrieved Matter . | . . . . . . . Parts Self-Destructed . | . . . . . . . Prevented . | . . . . . . . Kills | -11 -10 -10 -9 -9 -8 -8 ------- Run | Yrd Mat Min Mat Min Mat Sto Combat Hostiles Destroyed 36 | . 5 5 5 3 8 10 Guns 34 | . 5 3 5 3 8 10 AOE 2 | . . 2 . . . . Classes Destroyed 10 | 3 3 . 2 . . 2 Worker 7 | 4 . 1 . . 1 1 Tunneler 9 | 9 . . . . . . Recycler 2 | 1 . . . . . 1 Mechanic 1 | . . . . . . 1 Operator 1 | . . . 1 . . . Watcher 1 | . 1 . . . . . Swarmer 18 | . 3 5 3 3 4 . Grunt 8 | . 2 . . . 1 5 Duelist 2 | . . . . . . 2 Sentry 8 | . . . 2 . 3 3 Best Kill Streak 6 | 4 3 3 4 3 6 3 Combat Bots Only 5 | . 3 3 3 3 5 3 Max Kills in Single Turn 2 | 1 1 2 1 1 1 1 Gunslinging . | . . . . . . . Exploded 2 | . . 2 . . . . Melee . | . . . . . . . Uniques/NPCs Destroyed . | . . . . . . . Combat | -11 -10 -10 -9 -9 -8 -8 -------- Run | Yrd Mat Min Mat Min Mat Sto Hostile Shots Fired 332 | . 32 12 17 16 34 221 Missed 85 | . 7 5 4 4 2 63 Hits 247 | . 25 7 13 12 32 158 Melee 6 | . . . . . . 6 Projectile 241 | . 25 7 13 12 32 152 AOE 5 | . . . . . . 5 Critical Strikes 8 | . . . . . 1 7 Damage Taken 3714 | . 253 84 174 95 391 2717 Core 693 | . 64 8 47 19 46 509 Absorbed by Shields . | . . . . . . . Core Remaining (%) 84 | 100 . 71 . 83 . . Volleys Fired 156 | 48 27 5 17 6 20 33 Largest 3 | 2 2 2 3 3 3 3 Hottest 91 | 70 40 40 63 63 63 91 Shots Fired 361 | 96 54 8 51 16 56 80 Gun 358 | 96 54 6 51 16 56 79 Cannon . | . . . . . . . Launcher 3 | . . 2 . . . 1 Special . | . . . . . . . Kinetic 312 | 77 54 6 51 16 56 52 Thermal 19 | 19 . . . . . . Explosive 3 | . . 2 . . . 1 Electromagnetic 27 | . . . . . . 27 Robot Hit Streak 18 | 6 8 3 18 2 9 14 Robot Miss Streak 5 | 3 5 1 2 3 3 2 Penetration Max . | . . . . . . . Secondary Targets 5 | . . 1 . 1 . 3 Max Gunslinging Chain 1 | . . 1 . 1 . 1 Shots Hit Robots 207 | 47 32 4 25 5 33 61 Core Hits 101 | 15 10 6 10 4 16 40 Critical Kills . | . . . . . . . Critical Parts Destroyed 1 | . 1 . . . . . Critical Strikes 3 | 2 1 . . . . . Burn 2 | 2 . . . . . . Destroy 1 | . 1 . . . . . Melee Attacks . | . . . . . . . Impact . | . . . . . . . Slashing . | . . . . . . . Piercing . | . . . . . . . Sneak Attacks . | . . . . . . . Combat Hostiles . | . . . . . . . Follow-up Attacks . | . . . . . . . Damage Inflicted 3095 | 575 390 372 279 42 341 1096 Guns 2592 | 575 390 38 279 42 341 927 Cannons . | . . . . . . . Explosions 489 | . . 334 . . . 155 Melee . | . . . . . . . Ramming 14 | . . . . . . 14 Kinetic 2033 | 426 390 38 279 42 341 517 Thermal 149 | 149 . . . . . . Explosive 489 | . . 334 . . . 155 Electromagnetic 410 | . . . . . . 410 Impact . | . . . . . . . Slashing . | . . . . . . . Piercing . | . . . . . . . Highest Corruption 3 | . . . . . . 3 Average Corruption 1 | . . . . . . 1 Corruption Purged . | . . . . . . . Corruption Blocked . | . . . . . . . Effects 14 | . . . . . . 14 Message Errors 4 | . . . . . . 4 Matter Fused 4 | . . . . . . 4 Heat Flow Errors 1 | . . . . . . 1 Energy Discharges 2 | . . . . . . 2 Data Loss (minor) 3 | . . . . . . 3 Overload Shots . | . . . . . . . Overflow Damage 39 | . . 39 . . . . Projectiles . | . . . . . . . Explosions 39 | . . 39 . . . . Melee . | . . . . . . . Knockbacks . | . . . . . . . Impact . | . . . . . . . Kinetic . | . . . . . . . Secondary . | . . . . . . . Self-Inflicted Damage 34 | . . 31 . . . 3 Shots 1 | . . 1 . . . . Rammed 2 | . . . . . . 2 Targets Rammed 6 | . . . . . . 6 Kicked 4 | . . . . . . 4 Crushed . | . . . . . . . Highest Temperature 478 | 108 2 . 94 68 357 478 Average Temperature 113 | 44 2 . 31 36 146 154 Received Heat Transfer 1263 | . 156 . 54 . 108 945 Effects 11 | . . . . . 2 9 Shutdowns 7 | . . . . . 1 6 Energy Bleed 1 | . . . . . . 1 Interference 2 | . . . . . . 2 Short Circuit 1 | . . . . . 1 . Siege Activations . | . . . . . . . Martial Activations . | . . . . . . . Shielding Activations . | . . . . . . . Robots Disrupted . | . . . . . . . Combat Hostiles . | . . . . . . . Robots Corrupted . | . . . . . . . Combat Hostiles . | . . . . . . . Parts Fried 1 | . . . . . . 1 Impact Corruptions . | . . . . . . . Robots Melted . | . . . . . . . Combat Hostiles . | . . . . . . . Parts Melted . | . . . . . . . Heat Transferred 592 | 592 . . . . . . Parts Sabotaged . | . . . . . . . Parts Stolen . | . . . . . . . Parts Stripped . | . . . . . . . Power Chain Reactions . | . . . . . . . Alert | -11 -10 -10 -9 -9 -8 -8 ------- Run | Yrd Mat Min Mat Min Mat Sto Maximum Alert Level . | . . . . . . . Low Security (%) 100 | 100 100 100 100 100 100 100 Level 1 . | . . . . . . . Level 2 . | . . . . . . . Level 3 . | . . . . . . . Level 4 . | . . . . . . . Level 5 . | . . . . . . . High Security . | . . . . . . . Max Security . | . . . . . . . Peak Influence 163 | 10 70 93 75 75 163 99 Initial 56 | . . . 14 . 13 56 Average 11 | . 13 40 17 26 45 31 Influence Increases 1461 | 70 157 168 140 100 253 573 Destroy 0b10 Robot/C 800 | . 100 100 100 60 160 280 Destroy 0b10 Robot/NC 110 | 70 5 5 5 . 5 20 Destroy Leader 162 | . 22 10 30 10 40 50 Allied During Kill 46 | . . . . . . 46 Successful Hack 28 | . . . 5 . . 23 Disable Machine 15 | . . . . 15 . . Destroy Structure 30 | . . 23 . . 3 4 Lose Combat Pursuer 270 | . 30 30 . 15 45 150 Influence Decreases 1431 | 70 157 130 178 65 153 678 Entered New Map 125 | . . . 24 . 22 79 Time Decay 1005 | 70 157 120 154 65 121 318 Lost Part 148 | . . 10 . . 10 128 Lost Ally 153 | . . . . . . 153 Squads Dispatched 6 | . . . 3 . . 3 Investigation 1 | . . . . . . 1 Extermination . | . . . . . . . Reinforcement 3 | . . . 3 . . . Assault 2 | . . . . . . 2 Garrison . | . . . . . . . Intercept . | . . . . . . . Searches Triggered . | . . . . . . . Construction Impeded . | . . . . . . . Haulers Reinforced . | . . . . . . . Active Scanning Responses . | . . . . . . . Cargo Convoy Interrupts . | . . . . . . . Stealth | -11 -10 -10 -9 -9 -8 -8 --------- Run | Yrd Mat Min Mat Min Mat Sto Distress Signals 8 | . . . 3 . 1 4 Communications Jammed . | . . . . . . . Distress Signals . | . . . . . . . Times Spotted 68 | . 11 7 7 4 8 31 Peak Tracking Total 9 | . 4 3 2 4 7 9 Tactical Retreats 13 | . 2 2 . 1 2 6 Traps | -11 -10 -10 -9 -9 -8 -8 ------- Run | Yrd Mat Min Mat Min Mat Sto Traps Triggered 2 | . . . . . . 2 Indirectly . | . . . . . . . Trap Hack Attempts . | . . . . . . . Triggered . | . . . . . . . Disarmed . | . . . . . . . Reprogrammed . | . . . . . . . Reused . | . . . . . . . Traps Extracted . | . . . . . . . Installed . | . . . . . . . Triggered . | . . . . . . . Machines | -11 -10 -10 -9 -9 -8 -8 ---------- Run | Yrd Mat Min Mat Min Mat Sto Machines Disabled 1 | . . . . 1 . . Max in Single Turn 1 | . . . . 1 . . Machines Repaired . | . . . . . . . Machines Dismantled . | . . . . . . . Machines Sabotaged . | . . . . . . . Overloaded Fab Kills . | . . . . . . . Hacking | -11 -10 -10 -9 -9 -8 -8 --------- Run | Yrd Mat Min Mat Min Mat Sto Machines Accessed 17 | . 2 . 4 . 1 10 Terminals 16 | . 1 . 4 . 1 10 Fabricators . | . . . . . . . Repair Stations . | . . . . . . . Recycling Units 1 | . 1 . . . . . Scanalyzers . | . . . . . . . Garrison Access . | . . . . . . . Total Hacks 45 | . 5 . 11 . 3 26 Successful 15 | . 4 . 3 . . 8 Failed 30 | . 1 . 8 . 3 18 Catastrophic 5 | . . . 2 . 1 2 Database Lockouts . | . . . . . . . Manual 25 | . 2 . 3 . 3 17 Terminals 42 | . 2 . 11 . 3 26 Fabricators . | . . . . . . . Repair Stations . | . . . . . . . Recycling Units 3 | . 3 . . . . . Scanalyzers . | . . . . . . . Garrison Access . | . . . . . . . Terminal Hacks 13 | . 2 . 3 . . 8 Record 2 | . 1 . . . . 1 Open Door 4 | . . . . . . 4 Terminal Index 1 | . . . . . . 1 Alert Level 1 | . 1 . . . . . Dispatch Records 1 | . . . 1 . . . Patrol Status 1 | . . . . . . 1 Recall Investigation 1 | . . . . . . 1 Hauler Manifests 1 | . . . 1 . . . Zone Layout 1 | . . . 1 . . . Fabricator Hacks . | . . . . . . . Repair Station Hacks . | . . . . . . . Recycling Unit Hacks 2 | . 2 . . . . . Report Inventory 1 | . 1 . . . . . Retrieve Components 1 | . 1 . . . . . Scanalyzer . | . . . . . . . Garrison Access Hacks . | . . . . . . . Unauthorized Hacks . | . . . . . . . Terminals . | . . . . . . . Fabricators . | . . . . . . . Repair Stations . | . . . . . . . Recycling Units . | . . . . . . . Scanalyzers . | . . . . . . . Garrison Access . | . . . . . . . Data Cores Recovered 2 | . . . 1 . . 1 Used . | . . . . . . . Hacking Detections 13 | . 2 . 3 . 1 7 Full Trace Events 1 | . . . . . . 1 Feedback Events . | . . . . . . . Feedback Blocked . | . . . . . . . Robot Schematics Acquired . | . . . . . . . Robots Built . | . . . . . . . Authchips . | . . . . . . . Time . | . . . . . . . Total Robot Build Rating . | . . . . . . . Part Schematics Acquired . | . . . . . . . Parts Built . | . . . . . . . Authchips . | . . . . . . . Time . | . . . . . . . Total Part Build Rating . | . . . . . . . Parts Repaired . | . . . . . . . Time . | . . . . . . . Parts Recycled . | . . . . . . . Recycled Matter . | . . . . . . . Retrieved Matter . | . . . . . . . Retrieved Components 2 | . 2 . . . . . Parts Scanalyzed . | . . . . . . . Part Schematics Acquired . | . . . . . . . Parts Damaged . | . . . . . . . Bothacking | -11 -10 -10 -9 -9 -8 -8 ------------ Run | Yrd Mat Min Mat Min Mat Sto Used RIF Installer . | . . . . . . . Robots Hacked . | . . . . . . . Non-combat . | . . . . . . . Combat . | . . . . . . . Robot Hacks Applied . | . . . . . . . Relay Couplers Released . | . . . . . . . Fabnet Peak Effective % . | . . . . . . . Robots Rewired . | . . . . . . . Allies Hacked . | . . . . . . . Hacks Repelled . | . . . . . . . Allies | -11 -10 -10 -9 -9 -8 -8 -------- Run | Yrd Mat Min Mat Min Mat Sto Total Allies 12 | . . . . . . 12 Largest Group 11 | . . . . . . 11 Highest-Rated Group 219 | . . . . . . 219 Highest-Rated Ally 31 | . . . . . . 31 Total Orders 3 | . . . . . . 3 ROAM 1 | . . . . . . 1 FOLLOW 2 | . . . . . . 2 Ally Attacks 41 | . . . . . . 41 Total Damage 644 | . . . . . . 644 Kills 5 | . . . . . . 5 Allies Corrupted . | . . . . . . . Allies Melted . | . . . . . . . Intel | -11 -10 -10 -9 -9 -8 -8 ------- Run | Yrd Mat Min Mat Min Mat Sto Active Infowar (turns) 2850 | 242 531 281 448 193 408 747 Sensors 724 | . 520 204 . . . . Terrain 1967 | 83 11 77 448 193 408 747 Seismic 159 | 159 . . . . . . Robot Analysis Total . | . . . . . . . Derelict Logs Recovered 2 | . . 1 . 1 . . Drone Launches . | . . . . . . . Drone Recoveries . | . . . . . . . Exploration | -11 -10 -10 -9 -9 -8 -8 ------------- Run | Yrd Mat Min Mat Min Mat Sto Turns Passed 8578 | 5323 531 369 448 193 408 1306 Spaces Moved 2838 | 1328 240 203 230 106 196 535 Core 903 | 871 . . . . . 32 Treads 1755 | 457 240 203 230 106 196 323 Legs 5 | . . . . . . 5 Wheels 175 | . . . . . . 175 Hover . | . . . . . . . Flight . | . . . . . . . Fastest Speed 50 | 50 160 160 160 160 160 50 Average Speed 203 | 245 160 160 160 160 162 177 Slowest Speed 300 | 300 160 160 160 160 240 260 Overloaded Moves . | . . . . . . . Propulsion Burnouts . | . . . . . . . Robots Hopped . | . . . . . . . Potential Cave-ins . | . . . . . . . Cave-ins Triggered . | . . . . . . . Exploration Rate (%) 34 | 9 33 51 26 25 23 76 Regions Visited 6 Branch Regions 3 Pre-discovered Areas 1 | . . 1 . . . . Known Exits Taken . | . . . . . . . Unknown Exits Taken 6 | 1 1 1 1 1 1 . Scrap Searched 2 | . . 1 . 1 . . Spaces Dug . | . . . . . . . Terrain Destroyed 33 | . . 26 . . . 7 Melee . | . . . . . . . Projectile . | . . . . . . . AOE 33 | . . 26 . . . 7 Terrain Rammed . | . . . . . . . Walls Destroyed . | . . . . . . . Machines Disabled . | . . . . . . . Actions | -11 -10 -10 -9 -9 -8 -8 --------- Run | Yrd Mat Min Mat Min Mat Sto Total 5355 | 3296 335 245 286 120 256 817 Wait 2207 | 1883 52 24 14 4 21 209 Move 2832 | 1327 239 202 229 105 195 535 Hop . | . . . . . . . Pick Up 45 | 17 6 6 6 1 6 3 Fast Attach 14 | 9 1 . 1 . . 3 Attach 16 | . . 1 1 . 2 12 Detach 2 | . 1 . . . . 1 Swap 29 | 1 5 1 7 2 5 8 Drop 48 | 11 4 6 11 2 7 7 Fire 156 | 48 27 5 17 6 20 33 Melee . | . . . . . . . Ram 2 | . . . . . . 2 Kick 4 | . . . . . . 4 Crush . | . . . . . . . Escape Stasis . | . . . . . . . Rewire . | . . . . . . . Trap . | . . . . . . . Miscellaneous . | . . . . . . . Route ------- -11/Scrapyard -10/Materials (discovered 2 exits: [*Min] / [*Sub]) -10/Mines -9/Materials -9/Mines -8/Materials -8/Storage History --------- Turn | Location | Event 11 | -11/Scrapyard | Discovered new exit (range 16) 5324 | -11/Scrapyard | Entered Materials 5325 | -10/Materials | Build established: Mutant 5545 | -10/Materials | Discovered new exit (range 9) 5798 | -10/Materials | Discovered new exit (range 12) 5824 | -10/Materials | Derelicts attacked the area 5855 | -10/Materials | Entered Mines 5873 | -10/Mines | Learned location of Zion (-6) 5886 | -10/Mines | Found a Scrap Suit stashed away for nefarious purposes 5890 | -10/Mines | Found Scrap Suit 6044 | -10/Mines | Received a Rocket Launcher from a helpful Derelict 6137 | -10/Mines | Discovered new exit (range 15) 6224 | -10/Mines | Entered Materials 6224 | -9/Materials | Evolved 2 slots: Power x1, Weapon x1 6570 | -9/Materials | Discovered new exit (range 10) 6596 | -9/Materials | Build established: Scavenger-Skirmisher 6672 | -9/Materials | Entered Mines 6684 | -9/Mines | Learned 2 Materials zone layouts 6816 | -9/Mines | Discovered new exit (range 12) 6865 | -9/Mines | Entered Materials 6865 | -8/Materials | Evolved 2 slots: Power x1, Utility x1 7144 | -8/Materials | Discovered new exit (range 13) 7164 | -8/Materials | Build established: Scavenger-Tank 7273 | -8/Materials | Entered Storage 8080 | -8/Storage | Assisted by bots powering up and referring to "LRC-V3" 8206 | -8/Storage | Met a pair of Derelict thieves 8302 | -8/Storage | Lost 11 allies 8383 | -8/Storage | Lost 11 parts (3p3n2u3w) 8471 | -8/Storage | Core integrity fell below 50% 8521 | -8/Storage | Lost 3 parts (1p2n) 8568 | -8/Storage | Core integrity fell below 20% 8579 | -8/Storage | Destroyed by Y-45 Defender with Heavy Assault Rifle Last Messages --------------- 08531_ Aluminum Leg destroyed. 08538_ Y-45 Defender destroyed. 08538_ Switching to secondary target: Y-45 Defender. 08539_ Scrap Suit secures Hvy. Assault Rifle. 08540_ K-01 Serf collects debris. 08546_ L-31 Rogue destroyed. 08549_ Dropped Lrg. Storage Unit. 08549_ Acquired 25 matter. 08552_ EM Shotgun destroyed. 08559_ Connecting with Door Terminal... >>Open(Door) Sealed Heavy Doors opened. 08566_ R-06 Scavenger collects Particle Charger. 08566_ Critical hit (Destroy). 08566_ Scrap Suit destroyed. 08569_ Slammed into M-28 Smith. 08570_ Hvy. Assault Rifle destroyed. 08577_ 5X%DN3CPJ8SRHI4J LQAKYMN| S 08577_ Connecting with Recycling Unit... 08578_ Lgt. Assault Rifle destroyed. Map ----- +----------------------------------------------------+ | | | | | | | | | | | ?????????????????????????????????????????????????? | | ?????????????????????????????????????????????????? | | ??????????????????##?????????????????????????????? | | ###?????????????## #?????????????????????????????? | | ???#???????? #?????????????????????????????? | | "??#????????? #?????????????????????????????? | | """#???? """" #??##?????????????????????????? | | """??????"""" ???# ########?????????????????? | | """??????"""" ???# #?????????????????? | | ""?????? ?""" ????# #?????????????????? | | ???????? ????# !] ####??????????????? | | ? ???????? ?????# ]] """#??????????????? | | ????#????? ?????# ] R"#??????????????? | | ##/############+##????# """#?????????????"" | | ###### #???????????????## | | % + #?????????????###T | | ###### #?????????????# # | | ##+#########+###+# #####+####?????????????## # | | #?????????# #??# +??????????????## | | #?????????# #### #?????????????## | | """"" # ????????# + @ #?????????????#T # | | "? ???#?????????# # # "???????????## # | | "???????"???????#"" # + "????????????#==# | | ""?"?????????????#"Y # Y # "????????????#==# | | "????????????????#"" ####Y #??????????????#==# | | """"" #?????????# #??# Y #??????????????####= | | #?????????# ####??# #???????????????# | | ########?????????##??????# #??????????????# # | | #??#?????????????????????# #??????????????## ##% | | #?#??#???????????????????#Y %#########???????# #! | | ########################## # #!!!!######### | | T + !!% # !!## | | ####### ##### + !!## | | "" #???#?# #???# # ## | | "" #?????# #???# ##T# !!!## | | "" #????########### #???# #?##?!!!### | | #??????????????# #???# #?????###?# | | #####?#?#???#??????# #???# #?????#???#!! | | ####?????##???#????+ #???#####?? #######!% | | ?#]#???????????????# ####??????? #! | | ?# ###?#####???????# #???????"" """ # | | ?# T#??#"""#??????## #??????""" """ # | | ##+#####"Y"#####???# +????# """ """ " | | #???# #????# # | | ## ##??# #????#! # """"" | +----------------------------------------------------+ Best States ------------- Heat Dissipation 41 Energy Generation 24 Energy Capacity 580 Matter Stores 300 Matter Capacity 300 Sight Range 16 Robot Scan Range 14 Terrain Scan Range 16 Terrain Scan Density 10 Armor Coverage 150 Evasion (%) 44 Recoil Reduction 2 Item Schematics ----------------- None Robot Schematics ------------------ None Fabricated ------------ Nothing Repaired ---------- Nothing Alien Tech Used ----------------- None Achievements -------------- None Challenges ------------ None Game ------ Seed FissionGatlingRouter Manual? 0 Play Time 00:50:03 Cumulative 91.9 hours Start 2025.09.08 @ 17:43:46 End 2025.09.08 @ 21:06:31 Sessions 1 Manual Loads 0 Difficulty Rogue Special Mode None Game No. 38 Rogue 13 Adventurer 24 Explorer 1 Win Type - Total 0 Types 0/0/0/0/0/0/0/0/0/0 Lore% 23 Gallery% 42 Achievement% 40 Wizard Run 0 Options --------- Layout 0 ASCII 0 Keyboard 0 Movement Numpad Keybinds 0 Fullscreen 1 Font 18/SmallcapsGlow Map View 76x50 Zoom Use 43% Tactical HUD 1 Map Filters NONE Filters NONE Steam 1 RUN: 95ca4466-e6bf-4f4d-a170-1882dba67583